bitfinex/quotes_ETHUSD_20240710
["timestamp","ask_amount","ask_price","bid_price","bid_amount"]
[1720599920196,1.11966668,3093.6,3092.1,0.33562531]
[1720599920399,3.94595927,3093.7,3092.1,0.33562531]
[1720599920580,1.11966654,3093.6,3092.2,2.4976]
[1720599920789,3.0,3093.7,3092.3,0.34798333]
[1720599921081,2.446,3093.8,3092.3,0.28332253]
[1720599921082,5.446,3093.8,3092.3,0.28332253]
[1720599921310,1.11963971,3093.7,3092.4,0.27809225]
[1720599921512,3.0,3093.7,3092.4,0.27809225]
[1720599921711,3.0,3093.7,3092.5,0.06466068]
[1720599921914,2.446,3093.8,3092.6,2.3]
[1720599922135,2.446,3093.8,3092.7,0.30112032]
[1720599922289,0.50721931,3093.9,3092.7,0.23646607]
[1720599922733,0.50721931,3093.9,3092.8,0.06465223]
[1720599923831,0.50721931,3093.9,3092.7,0.23646607]
[1720599926118,0.50721931,3093.9,3092.8,0.06465186]
[1720599926431,0.50721931,3093.9,3092.8,0.32476365]
[1720599926630,0.50721931,3093.9,3092.9,2.2982]
[1720599926791,0.50721931,3093.9,3093.0,0.06464881]
[1720599927191,0.50721931,3093.9,3093.1,2.3807]
[1720599928437,0.50721931,3093.9,3093.2,0.06464832]
[1720599928731,0.50721931,3093.9,3093.3,0.24453483]
[1720599928942,0.50721931,3093.9,3093.4,2.49914175]
[1720599929238,3.0,3094.5,3093.4,2.49914175]
[1720599929410,6.79193855,3095.0,3093.4,2.49914175]
[1720599929611,0.5071456,3094.0,3093.5,0.24991418]
[1720599929816,0.87304986,3094.9,3093.6,0.06463826]
[1720599930034,1.88573347,3094.8,3093.6,0.3395435]
[1720599930215,0.50714655,3094.2,3093.6,0.3395435]
[1720599930440,5.61017989,3095.0,3093.6,0.3395435]
[1720599930605,2.00868933,3094.9,3093.6,0.3395435]
[1720599930809,0.50714658,3094.2,3093.6,0.3395435]
[1720599931151,5.61017989,3095.0,3093.6,0.3395435]
[1720599931446,0.50714053,3094.2,3093.6,0.3395435]
[1720599931742,5.61017989,3095.0,3093.6,0.3395435]
[1720599931906,0.50714042,3094.2,3093.6,0.3395435]
[1720599932243,5.61017989,3095.0,3093.6,0.3395435]
[1720599932424,1.11921976,3094.9,3093.6,0.27490524]
[1720599932638,0.50714413,3094.2,3093.4,2.4345]
[1720599932935,3.3242,3094.5,3093.4,2.4345]
[1720599933130,3.3242,3094.5,3093.5,0.24345]
[1720599933131,0.50714947,3094.1,3093.5,0.24345]
[1720599933639,0.50714947,3094.1,3093.7,2.3957]
[1720599933841,0.50714947,3094.1,3093.8,0.06463647]
[1720599935110,3.0,3094.9,3093.8,0.06463647]
[1720599935302,0.50709658,3094.6,3093.7,2.46033037]
[1720599935505,0.50709658,3094.6,3093.8,0.24603304]
[1720599936139,0.50709658,3094.6,3093.9,2.3808]
[1720599939509,0.50709658,3094.6,3094.0,0.06462577]
[1720599940148,0.50709658,3094.6,3094.1,2.252]
[1720599940311,0.50709658,3094.6,3094.2,0.23166258]
[1720599943240,3.0,3095.3,3094.3,2.3766]
[1720599943439,3.3242,3095.7,3094.3,2.3766]
[1720599943637,3.3242,3095.7,3094.4,0.26082626]
[1720599943638,0.50699627,3095.1,3094.4,0.26082626]
[1720599943816,0.50699627,3095.1,3094.5,2.2985]
[1720599944014,0.48619955,3095.7,3094.6,0.06461393]
[1720599944217,0.3242,3095.7,3094.6,0.06461393]
[1720599944525,0.83117014,3095.7,3094.7,0.23631139]
[1720599944845,0.83117014,3095.7,3094.8,0.06461337]
[1720599946125,0.50697014,3095.7,3094.9,2.2985]
[1720599946326,0.50697014,3095.7,3095.0,0.30092007]
[1720599946637,0.50697014,3095.7,3095.0,0.23631134]
[1720599947911,0.50697014,3095.7,3095.1,0.06460458]
[1720599949237,0.50697014,3095.7,3095.1,2.4819046]
[1720599950255,0.50697014,3095.7,3095.2,0.06460192]
[1720599950454,0.50697014,3095.7,3095.3,0.24819019]
[1720599952072,0.50697014,3095.7,3095.3,0.31279205]
[1720599952275,0.3242,3096.4,3095.4,2.4467]
[1720599952587,0.50684318,3096.1,3095.5,0.06459867]
[1720599952771,0.50684318,3096.1,3095.6,0.25112987]
[1720599958404,0.50684318,3096.1,3095.4,2.4467]
[1720599958405,0.0645615,3096.0,3095.4,2.4467]
[1720599958705,0.50684318,3096.1,3095.4,2.4467]
[1720599960595,0.50684318,3096.1,3095.2,2.3249]
[1720599960800,0.50684318,3096.1,3095.3,0.83066081]
[1720599961308,0.50684318,3096.1,3095.4,0.06459878]
[1720599961474,0.50684318,3096.1,3095.5,2.315]
[1720599961811,0.50684318,3096.1,3095.6,0.06459655]
[1720599963299,0.50684318,3096.1,3095.5,2.37959654]
[1720599963503,0.50684318,3096.1,3095.6,0.23795965]
[1720599963814,0.50684318,3096.1,3095.5,2.315]
[1720599963996,0.50684318,3096.1,3095.3,0.83066081]
[1720599965963,0.0645615,3096.0,3095.3,0.83066081]
[1720599966160,0.0645615,3096.0,3095.1,8.34920806]
[1720599966391,1.11880771,3095.9,3095.1,5.98170806]
[1720599966897,1.11885455,3095.8,3095.1,5.98170806]
[1720599967064,0.83104318,3096.1,3095.1,5.98170806]
[1720599967065,0.83104318,3096.1,3095.2,0.59817081]
[1720599967260,1.11877141,3096.0,3095.2,0.59817081]
[1720599967463,0.83104318,3096.1,3095.2,0.59817081]
[1720599967706,1.11871749,3096.0,3095.2,0.59817081]
[1720599967864,0.83104318,3096.1,3095.3,0.65798789]
[1720599968183,1.11871647,3096.0,3095.3,0.65798789]
[1720599968387,1.11871647,3095.9,3095.3,0.65798789]
[1720599968696,1.11877589,3095.8,3095.3,0.65798789]
[1720599968901,0.83104318,3096.1,3095.3,0.65798789]
[1720599969097,1.11876815,3096.0,3095.3,0.65798789]
[1720599969265,1.11876815,3095.9,3095.3,0.65798789]
[1720599969464,1.11876815,3095.8,3095.3,0.65798789]
[1720599969666,0.83104318,3096.1,3095.3,0.65798789]
[1720599969897,1.11875217,3096.0,3095.3,0.65798789]
[1720599970092,1.11875402,3095.9,3095.3,0.65798789]
[1720599970317,1.11875402,3095.8,3095.3,0.65798789]
[1720599970522,1.11875402,3096.0,3095.3,0.65798789]
[1720599970689,0.83104318,3096.1,3095.3,0.65798789]
[1720599970690,1.11869781,3095.9,3095.3,0.65798789]
[1720599970894,0.50684318,3096.1,3095.4,2.3574]
[1720599971100,0.50684318,3096.1,3095.5,0.30153879]
[1720599971101,1.11868814,3096.0,3095.5,0.30153879]
[1720599971294,1.11866427,3095.9,3095.5,0.30153879]
[1720599971500,0.50684318,3096.1,3095.5,0.30153879]
[1720599971700,0.50684318,3096.1,3095.6,0.26589388]
[1720599972525,1.11859917,3096.0,3095.6,0.26589388]
[1720599972831,0.50684318,3096.1,3095.6,0.26589388]
[1720599973018,1.11859826,3096.0,3095.6,0.26589388]
[1720599973215,0.50684318,3096.1,3095.6,0.26589388]
[1720599973426,1.11860395,3096.0,3095.6,0.26589388]
[1720599973727,0.50684318,3096.1,3095.6,0.26589388]
[1720599974027,1.11859366,3096.0,3095.6,0.26589388]
[1720599974327,0.50684318,3096.1,3095.6,0.26589388]
[1720599974636,1.1186218,3096.0,3095.6,0.26589388]
[1720599974794,1.1186218,3095.9,3095.3,0.65798789]
[1720599974990,1.1186218,3096.0,3095.3,0.65798789]
[1720599975398,1.1186218,3096.0,3095.4,0.06460472]
[1720599975592,1.1186218,3096.0,3095.5,2.2654]
[1720599975942,1.1186218,3096.0,3095.6,0.2975974]
[1720599976697,0.50684318,3096.1,3095.6,0.2975974]
[1720599977019,1.11858971,3096.0,3095.7,0.06459651]
[1720599977226,0.50684318,3096.1,3095.6,0.23300047]
[1720599977392,1.1185891,3096.0,3095.7,0.24984005]
[1720599977741,0.50684318,3096.1,3095.7,0.24984005]
[1720599980354,3.0,3096.6,3095.9,2.3052]
[1720599980534,1.11842724,3096.5,3096.0,0.06459076]
[1720599980739,0.50679339,3096.7,3096.0,0.06459076]
[1720599980960,1.11837997,3096.6,3096.1,0.23697908]
[1720599981162,1.11837997,3096.5,3096.2,0.06458978]
[1720599981365,0.50679339,3096.7,3096.2,0.06458978]
[1720599981366,1.11838862,3096.6,3096.2,0.06458978]
[1720599981661,0.50679339,3096.7,3096.2,0.06458978]
[1720599981966,1.11838685,3096.6,3096.2,0.06458978]
[1720599982108,0.50679339,3096.7,3096.2,0.06458978]
[1720599982315,1.11838575,3096.6,3096.2,0.06458978]
[1720599982631,0.50679339,3096.7,3096.2,0.06458978]
[1720599982929,1.11838194,3096.6,3096.2,0.06458978]
[1720599983271,0.50679339,3096.7,3096.2,0.06458978]
[1720599983571,1.11838144,3096.6,3096.2,0.06458978]
[1720599983729,1.11838144,3096.6,3096.1,0.23697908]
[1720599983730,2.446,3097.4,3096.1,0.23697908]
[1720599983935,0.50670311,3097.1,3096.1,0.23697908]
[1720599984148,1.11828913,3097.0,3096.1,0.23697908]
[1720599984319,0.50670311,3097.1,3096.2,2.3111]
[1720599984519,1.11826074,3097.0,3096.2,2.3111]
[1720599984828,0.50670311,3097.1,3096.2,2.3111]
[1720599985028,1.11827433,3097.0,3096.2,2.3111]
[1720599985272,0.50670311,3097.1,3096.3,0.29568871]
[1720599988573,0.50670311,3097.1,3096.3,0.23111]
[1720599988775,0.50670311,3097.1,3096.4,0.0645784]
[1720599989698,0.50670311,3097.1,3096.3,0.23111]
[1720599989906,0.50670311,3097.1,3096.4,0.254221]
[1720599990457,0.50670311,3097.1,3095.6,3.88112079]
[1720599990458,3.56437068,3097.0,3095.8,2.466]
[1720599990814,4.11837068,3096.9,3095.8,2.466]
[1720599991112,1.11837068,3096.8,3095.8,2.466]
[1720599991392,1.11837068,3096.8,3095.9,0.2466]
[1720599993698,1.11845941,3096.7,3095.9,0.2466]
[1720599993856,3.0645615,3096.9,3095.9,0.2466]
[1720599994057,1.11845529,3096.8,3095.9,0.2466]
[1720599994369,1.11845529,3096.7,3095.8,2.466]
[1720599994577,3.0645615,3096.9,3095.8,2.466]
[1720599994578,1.11845529,3096.8,3095.8,2.466]
[1720599994897,1.11845529,3096.7,3095.8,3.03339916]
[1720599996065,1.18301679,3096.7,3095.8,3.03339916]
[1720599996295,1.18301679,3096.7,3095.8,2.466]
[1720599996296,1.11845529,3096.6,3095.8,2.466]
[1720599996529,1.11845529,3096.6,3095.6,3.2079916]
[1720599996530,2.0022415,3096.5,3095.6,3.2079916]
[1720599996694,6.81090711,3096.4,3095.6,3.2079916]
[1720599996892,4.04926873,3096.3,3095.6,3.2079916]
[1720599997089,1.11870878,3096.2,3095.6,3.2079916]
[1720599998230,3.0,3096.4,3095.6,3.2079916]
[1720599998429,3.0,3096.8,3095.6,3.2079916]
[1720599998580,1.11845328,3096.7,3095.7,0.65025872]
[1720599998923,1.11845328,3096.6,3095.7,0.65025872]
[1720599999126,1.11845328,3096.7,3095.7,0.65025872]
[1720599999293,1.1184893,3096.8,3095.8,0.38582503]
[1720599999493,1.1184893,3096.7,3095.8,0.38582503]
[1720599999819,1.1830508,3096.7,3095.8,0.38582503]
[1720600000041,4.18114606,3096.7,3095.8,0.38582503]
[1720600000186,6.05620372,3096.6,3095.6,3.2079916]
[1720600000385,1.11858372,3096.5,3095.6,3.2079916]
[1720600000580,1.18320674,3096.4,3095.6,3.2079916]
[1720600000914,1.43073791,3096.3,3095.6,3.2079916]
[1720600001092,1.11866422,3096.2,3095.6,3.2079916]
[1720600001421,1.11866422,3096.1,3095.6,3.2079916]
[1720600001618,3.27562182,3096.5,3095.6,3.2079916]
[1720600001619,1.11866422,3096.2,3095.6,3.2079916]
[1720600001920,1.11866422,3096.1,3095.6,3.2079916]
[1720600002220,1.11866422,3096.3,3095.6,4.07918076]
[1720600002513,4.40246332,3096.4,3095.6,3.2079916]
[1720600002514,1.11866422,3096.2,3095.6,3.2079916]
[1720600002823,1.11866422,3096.1,3095.6,3.2079916]
[1720600002991,3.0,3096.4,3095.6,3.2079916]
[1720600003331,1.11860821,3096.3,3095.7,0.64379916]
[1720600003495,3.0,3096.5,3095.8,2.4325]
[1720600003697,3.0,3096.5,3095.9,0.30762992]
[1720600003885,1.33790182,3096.9,3095.9,0.30762992]
[1720600004087,1.11847003,3096.8,3095.9,0.30762992]
[1720600004435,1.11847003,3096.7,3095.9,0.30762992]
[1720600004603,1.11847003,3096.6,3096.0,0.27401299]
[1720600004807,4.66210182,3097.0,3096.0,0.27401299]
[1720600005122,2.4563572,3096.9,3096.0,0.27401299]
[1720600005310,1.11845538,3096.8,3096.0,0.27401299]
[1720600005709,1.11845538,3096.9,3096.0,0.27401299]
[1720600006019,2.0135012,3096.9,3096.0,0.27401299]
[1720600006225,1.11845538,3096.8,3096.0,0.27401299]
[1720600006384,1.11845538,3096.7,3096.0,0.27401299]
[1720600006579,1.11845538,3096.8,3096.0,0.27401299]
[1720600006793,4.66210182,3097.0,3096.0,0.27401299]
[1720600007041,2.446,3096.8,3096.0,0.27401299]
[1720600007183,1.11845991,3096.7,3095.8,2.4325]
[1720600007603,4.11845991,3096.7,3095.8,2.4325]
[1720600007819,1.11845991,3096.6,3095.8,2.4325]
[1720600008125,1.11845991,3096.6,3095.9,0.30762992]
[1720600010540,1.11848123,3096.5,3095.9,0.30762992]
[1720600010733,3.0,3096.7,3095.9,0.30762992]
[1720600011030,2.446,3096.8,3095.9,0.30762992]
[1720600011031,1.11848319,3096.6,3095.9,0.30762992]
[1720600011225,1.11848319,3096.5,3095.9,0.30762992]
[1720600011534,3.0,3096.7,3096.0,0.27401299]
[1720600011750,1.11847139,3096.6,3096.0,0.27401299]
[1720600011897,1.11847139,3096.5,3096.0,0.27401299]
[1720600012092,1.11847139,3096.5,3095.8,2.4325]
[1720600012093,1.11847139,3096.6,3095.8,2.4325]
[1720600012332,1.11847188,3096.5,3095.8,2.4325]
[1720600012540,3.0,3096.7,3095.8,2.4325]
[1720600012838,1.11847165,3096.6,3095.8,2.4325]
[1720600013011,2.446,3096.4,3095.6,3.2079916]
[1720600013212,2.87738214,3096.3,3095.5,3.23]
[1720600013414,1.33790182,3096.1,3095.5,3.23]
[1720600013621,1.11878868,3096.0,3095.5,3.23]
[1720600013806,1.11878868,3095.9,3095.5,3.23]
[1720600014006,1.11878868,3095.8,3095.5,3.23]
[1720600014229,0.62758118,3096.0,3095.5,3.23]
[1720600014230,1.11878868,3095.9,3095.5,3.23]
[1720600014561,1.35798717,3095.8,3095.0,5.98170806]
[1720600014767,2.446,3095.6,3095.0,5.98170806]
[1720600015040,2.521252,3095.5,3095.0,5.98170806]
[1720600015284,1.11878868,3095.4,3095.0,5.98170806]
[1720600016842,3.0645615,3095.5,3095.0,5.98170806]
[1720600017045,1.1189636,3095.4,3095.0,5.98170806]
[1720600019605,1.1189636,3095.4,3094.6,2.2778]
[1720600020385,1.11896789,3095.3,3094.6,2.2778]
[1720600020665,3.0,3095.5,3094.6,2.2778]
[1720600020806,1.11900381,3095.4,3094.7,0.22778]
[1720600021000,1.11900381,3095.3,3094.7,0.22778]
[1720600021205,3.0,3095.5,3094.7,0.22778]
[1720600021407,1.11895651,3095.4,3094.6,2.2778]
[1720600021602,1.11895651,3095.3,3094.6,2.2778]
[1720600021834,1.11895651,3095.4,3094.6,2.2778]
[1720600022749,1.11895651,3095.4,3094.6,2.50558]
[1720600023053,3.57702,3095.5,3094.6,2.50558]
[1720600023054,1.11899014,3095.3,3094.6,2.50558]
[1720600023219,3.6415815,3095.5,3094.6,2.50558]
[1720600023425,1.11899149,3095.4,3094.6,2.50558]
[1720600023618,3.57702,3095.5,3094.6,2.50558]
[1720600023821,1.11898022,3095.4,3094.6,2.50558]
[1720600024048,1.11903984,3095.3,3094.6,2.50558]
[1720600024251,3.6415815,3095.5,3094.6,2.50558]
[1720600024540,1.11900418,3095.4,3094.6,2.50558]
[1720600024746,3.6415815,3095.5,3094.6,2.50558]
[1720600025047,1.1190302,3095.4,3094.6,2.50558]
[1720600025230,3.57702,3095.5,3094.6,2.50558]
[1720600025549,1.1189794,3095.4,3094.6,2.50558]
[1720600025745,3.57702,3095.5,3094.6,2.50558]
[1720600025915,1.118977,3095.4,3094.6,2.50558]
[1720600026112,3.57702,3095.5,3094.6,2.50558]
[1720600026722,1.18357593,3095.4,3094.6,2.50558]
[1720600027011,0.0645615,3095.4,3094.6,2.50558]
[1720600027411,3.57702,3095.5,3094.6,2.50558]
[1720600028305,0.634722,3095.4,3094.6,2.50558]
[1720600028541,0.0645615,3095.3,3094.6,2.2778]
[1720600030311,0.634722,3095.4,3094.6,2.2778]
[1720600030927,3.3887615,3095.5,3094.6,2.2778]
[1720600031125,1.11902159,3095.4,3094.6,2.2778]
[1720600031413,3.3887615,3095.5,3094.6,2.2778]
[1720600031625,1.11902374,3095.4,3094.6,2.2778]
[1720600031811,3.3887615,3095.5,3094.6,2.2778]
[1720600032041,1.11901384,3095.4,3094.6,2.2778]
[1720600032215,4.16606265,3095.5,3094.6,2.2778]
[1720600032409,1.11901426,3095.4,3094.6,2.2778]
[1720600032615,4.16606265,3095.5,3094.6,2.2778]
[1720600032815,1.11902218,3095.4,3094.6,2.2778]
[1720600033115,0.0645615,3095.3,3094.6,2.2778]
[1720600034241,0.0645615,3095.3,3094.6,2.50558]
[1720600036071,1.11907933,3095.2,3094.6,2.50558]
[1720600036252,0.0645615,3095.3,3094.6,2.2778]
[1720600036430,1.11906079,3095.2,3094.6,2.2778]
[1720600036631,0.0645615,3095.1,3094.6,2.2778]
[1720600036847,0.0645615,3095.4,3094.6,2.2778]
[1720600037140,1.11906113,3095.3,3094.6,2.2778]
[1720600037365,2.446,3095.1,3094.2,2.4337]
[1720600037670,2.446,3095.1,3094.1,5.98170806]
[1720600037671,2.446,3094.7,3094.1,5.98170806]
[1720600037904,1.18362263,3094.6,3094.0,3.2079916]
[1720600038173,1.11929686,3094.5,3094.0,3.2079916]
[1720600038464,3.0,3094.6,3094.0,3.2079916]
[1720600039069,3.0,3094.6,3094.0,3.75687076]
[1720600039243,5.446,3095.1,3094.0,3.75687076]
[1720600039564,1.11918642,3095.0,3094.0,3.75687076]
[1720600039729,1.11918642,3094.9,3094.0,3.75687076]
[1720600039925,5.446,3095.1,3094.1,0.60376708]
[1720600040265,1.11916541,3095.0,3094.1,0.60376708]
[1720600040473,1.11916541,3094.9,3094.1,0.60376708]
[1720600040631,1.11916541,3095.0,3094.1,0.60376708]
[1720600040830,1.11916541,3095.0,3094.2,0.38117587]
[1720600043370,1.11919035,3094.9,3094.2,0.38117587]
[1720600043670,1.11919035,3094.8,3094.1,0.60376708]
[1720600043840,1.11919035,3095.0,3094.1,0.60376708]
[1720600044163,1.11919035,3094.9,3094.1,0.60376708]
[1720600044367,1.62626973,3094.8,3094.2,0.38117587]
[1720600044672,1.11919035,3094.7,3094.2,0.38117587]
[1720600044878,1.11919035,3094.6,3094.2,0.38117587]
[1720600045061,1.11919035,3094.5,3094.2,0.38117587]
[1720600045373,1.11919035,3094.4,3094.2,0.38117587]
[1720600045586,0.50707938,3094.8,3094.2,0.38117587]
[1720600045788,1.11916654,3094.7,3094.2,0.38117587]
[1720600045988,1.11916654,3094.6,3094.2,0.38117587]
[1720600046187,1.11916654,3094.7,3094.2,0.38117587]
[1720600046364,0.50707938,3094.8,3094.2,0.38117587]
[1720600046365,1.11916654,3094.6,3094.2,0.38117587]
[1720600046686,1.11916654,3094.5,3094.2,0.38117587]
[1720600046850,1.11916654,3094.4,3094.2,0.38117587]
[1720600047052,0.50707938,3094.8,3094.2,0.38117587]
[1720600047348,1.11917526,3094.7,3094.2,0.38117587]
[1720600047553,1.11917526,3094.6,3094.2,0.38117587]
[1720600047785,1.11917526,3094.5,3094.2,0.38117587]
[1720600047989,1.11917526,3094.5,3094.0,3.2079916]
[1720600047990,1.11917526,3094.4,3094.0,3.2079916]
[1720600048291,0.50707938,3094.8,3094.0,3.2079916]
[1720600048498,1.11921795,3094.7,3094.0,3.2079916]
[1720600048800,1.11921795,3094.6,3094.0,3.2079916]
[1720600048961,1.11921795,3094.5,3094.0,3.75687076]
[1720600049161,1.11921795,3094.4,3094.0,3.75687076]
[1720600049384,0.50707938,3094.8,3094.1,0.60376708]
[1720600049690,1.11918016,3094.7,3094.1,0.60376708]
[1720600049896,1.11918016,3094.6,3094.1,0.60376708]
[1720600050094,1.11918016,3094.5,3094.2,0.38117587]
[1720600050264,1.11917145,3094.4,3094.2,0.38117587]
[1720600050488,0.50707938,3094.8,3094.2,0.38117587]
[1720600050815,1.11917895,3094.7,3094.2,0.38117587]
[1720600050985,1.11917895,3094.6,3094.2,0.38117587]
[1720600051183,0.50707938,3094.8,3094.2,0.38117587]
[1720600051184,1.11917895,3094.5,3094.2,0.38117587]
[1720600051399,1.11917895,3094.4,3094.2,0.38117587]
[1720600051585,0.50707938,3094.8,3094.2,0.38117587]
[1720600051790,1.11918283,3094.7,3094.2,0.38117587]
[1720600051976,1.11918283,3094.6,3094.2,0.38117587]
[1720600052167,1.11918283,3094.7,3094.2,0.38117587]
[1720600052372,1.11918283,3094.6,3094.1,0.60376708]
[1720600052716,1.11918283,3094.5,3094.1,0.60376708]
[1720600053006,1.11918283,3094.4,3094.0,3.2079916]
[1720600053208,0.50707938,3094.8,3094.0,3.2079916]
[1720600053209,1.11918283,3094.7,3094.0,3.2079916]
[1720600053510,1.11921628,3094.6,3094.0,3.2079916]
[1720600053713,1.11922724,3094.5,3094.1,0.54887916]
[1720600054005,1.11922724,3094.4,3094.0,3.2079916]
[1720600054320,1.11922561,3094.3,3094.0,3.2079916]
[1720600054607,0.50707938,3094.8,3094.0,3.2079916]
[1720600054608,0.50707938,3094.8,3094.1,2.3515]
[1720600054769,0.50707938,3094.8,3094.2,0.55594916]
[1720600057814,0.50707938,3094.8,3094.4,2.3261]
[1720600058076,0.50707938,3094.8,3094.5,0.06462009]
[1720600058511,1.33790182,3095.6,3094.5,0.06462009]
[1720600059007,0.50697487,3095.3,3094.5,0.06462009]
[1720600059212,0.50697487,3095.3,3094.6,0.23907201]
[1720600059377,0.50697487,3095.3,3094.8,2.2952]
[1720600059581,0.50697487,3095.3,3094.9,0.06461226]
[1720600059786,0.50697487,3095.3,3095.0,2.2952]
[1720600059996,1.33790182,3095.9,3095.1,0.06461051]
[1720600060312,0.50693186,3095.8,3095.2,0.23598105]
[1720600060568,0.50693186,3095.8,3095.3,2.2948]
[1720600062121,0.50693186,3095.8,3095.4,0.06460768]
[1720600063521,0.50693186,3095.8,3095.3,2.2948]
[1720600063943,0.50693186,3095.8,3095.4,0.06460117]
[1720600065425,0.50693186,3095.8,3095.5,2.3869]
[1720600065634,0.50693186,3095.8,3095.7,2.3869]
[1720600065970,4.33790182,3096.8,3095.7,2.3869]
[1720600066127,0.50679681,3096.0,3095.8,0.06459694]
[1720600066323,3.0,3096.7,3095.8,0.24514969]
[1720600066537,1.11852462,3096.6,3095.7,2.3869]
[1720600066749,0.50680432,3096.0,3095.7,2.3869]
[1720600067061,2.446,3096.6,3095.7,2.3869]
[1720600067261,2.446,3096.6,3095.7,2.62559]
[1720600067262,0.50681529,3096.0,3095.7,2.62559]
[1720600067620,2.446,3096.2,3095.4,2.2636]
[1720600067829,0.50684878,3096.0,3095.2,5.98170806]
[1720600068132,0.80858981,3096.0,3095.2,5.98170806]
[1720600069446,0.50684878,3096.0,3095.2,5.98170806]
[1720600070166,0.50684878,3096.0,3095.1,2.3789]
[1720600071320,0.50684878,3096.0,3095.1,2.4601]
[1720600074982,0.50684878,3096.0,3095.1,2.5247019]
[1720600079862,0.50684878,3096.0,3095.2,0.55]
[1720600080064,0.50684878,3096.0,3095.3,0.37206732]
[1720600080375,0.50684878,3096.0,3095.3,0.30747019]
[1720600080784,0.50684878,3096.0,3095.4,2.4746]
[1720600080984,0.50684878,3096.0,3095.5,0.06459662]
[1720600081579,0.50684878,3096.0,3095.4,2.4746]
[1720600081775,0.50684878,3096.0,3095.5,0.27820702]
[1720600090394,0.50684878,3096.0,3095.6,0.06459742]
[1720600090639,0.50684878,3096.0,3095.5,0.27820702]
[1720600091651,0.50684878,3096.0,3095.7,2.3912]
[1720600091865,3.0,3096.9,3095.7,2.3912]
[1720600092061,1.1183992,3096.8,3095.7,2.3912]
[1720600092253,0.50674985,3096.4,3095.7,2.3912]
[1720600092563,0.50674985,3096.4,3095.8,0.23912]
[1720600093211,3.0,3096.9,3095.8,0.23912]
[1720600093413,1.62510997,3096.8,3095.8,0.23912]
[1720600093613,1.11836289,3096.7,3095.9,0.263032]
[1720600093827,0.50674708,3096.8,3095.9,0.263032]
[1720600094070,1.11839995,3096.7,3095.9,0.263032]
[1720600094387,1.11839995,3096.6,3095.9,0.263032]
[1720600094513,3.41579995,3096.5,3095.2,8.74585068]
[1720600094718,4.11839995,3096.4,3095.2,8.74585068]
[1720600095061,1.11839995,3096.3,3095.2,8.74585068]
[1720600096653,1.11839995,3096.3,3095.2,0.33744262]
[1720600096862,2.74780149,3096.2,3095.0,6.4379916]
[1720600097062,1.11839995,3096.1,3095.0,6.4379916]
[1720600097214,2.5105615,3096.0,3095.0,6.4379916]
[1720600097415,1.11870279,3095.9,3095.0,6.4379916]
[1720600097661,4.11870279,3095.9,3095.0,7.63914076]
[1720600097967,1.11870279,3095.8,3095.0,6.4379916]
[1720600098256,2.3359615,3095.7,3095.0,6.4379916]
[1720600098459,1.11870279,3095.6,3095.0,6.4379916]
[1720600098755,0.0645615,3095.5,3095.0,6.4379916]
[1720600099055,1.11870279,3095.4,3095.0,6.4379916]
[1720600099550,3.0645615,3095.6,3095.0,6.4379916]
[1720600099758,1.1188786,3095.5,3095.0,6.4379916]
[1720600100470,3.0,3095.6,3095.0,6.4379916]
[1720600100629,1.11891717,3095.5,3095.0,3.2079916]
[1720600102157,3.0,3095.6,3095.0,3.2079916]
[1720600102341,2.2714,3095.7,3095.0,3.2079916]
[1720600102771,1.11877918,3095.6,3095.0,3.2079916]
[1720600102916,2.2714,3095.7,3095.0,3.2079916]
[1720600103131,1.11883964,3095.6,3095.0,3.52879076]
[1720600103343,3.0,3095.6,3095.0,3.52879076]
[1720600103620,2.2714,3095.7,3095.0,3.52879076]
[1720600103621,5.2714,3095.7,3095.0,3.52879076]
[1720600103820,2.2714,3095.7,3095.1,0.35287908]
[1720600104574,1.11880577,3095.6,3095.0,3.2079916]
[1720600104735,1.11880577,3095.5,3095.0,3.2079916]
[1720600107255,1.11889795,3095.4,3095.0,3.2079916]
[1720600107579,3.0,3095.6,3095.0,3.2079916]
[1720600107744,1.11888193,3095.5,3095.0,3.2079916]
[1720600107945,3.0,3095.6,3095.0,3.2079916]
[1720600108261,1.11888198,3095.5,3095.0,3.2079916]
[1720600108463,3.0,3095.6,3095.0,3.2079916]
[1720600108621,1.11887521,3095.5,3095.0,3.52879076]
[1720600108824,3.0,3095.6,3095.0,5.97209076]
[1720600109025,3.0,3095.8,3095.0,5.97209076]
[1720600109225,1.11881964,3095.7,3095.0,5.97209076]
[1720600109468,3.0,3095.8,3095.0,5.97209076]
[1720600109631,1.11881119,3095.7,3095.1,0.59720908]
[1720600109828,3.0,3095.8,3095.1,0.59720908]
[1720600110016,1.33790182,3096.2,3095.1,0.59720908]
[1720600110221,1.11869945,3096.1,3095.2,0.65692998]
[1720600110472,1.11869945,3096.0,3095.2,0.65692998]
[1720600110678,1.11870316,3095.9,3095.2,0.65692998]
[1720600110838,1.33790182,3096.1,3095.0,5.97209076]
[1720600110839,2.2995,3095.8,3095.0,5.97209076]
[1720600112327,1.11883552,3095.7,3095.0,3.52879076]
[1720600112528,1.11883552,3095.6,3095.0,3.2079916]
[1720600112724,1.11883552,3095.5,3095.0,3.2079916]
[1720600112928,1.11883552,3095.6,3095.0,3.2079916]
[1720600114169,5.446,3095.7,3095.0,3.2079916]
[1720600114468,1.11884235,3095.6,3095.0,3.2079916]
[1720600114627,5.446,3095.7,3095.0,3.52879076]
[1720600114829,1.11882588,3095.6,3095.0,3.52879076]
[1720600115055,3.0,3095.6,3095.0,3.52879076]
[1720600115269,5.446,3095.7,3095.0,3.52879076]
[1720600115471,1.11884834,3095.6,3095.0,3.52879076]
[1720600115781,3.0,3095.6,3095.0,3.52879076]
[1720600115950,2.446,3095.7,3095.0,3.52879076]
[1720600116138,1.11884754,3095.6,3095.0,3.52879076]
[1720600116332,3.0,3095.6,3095.0,3.52879076]
[1720600116731,2.446,3095.7,3095.0,3.52879076]
[1720600116931,1.1188487,3095.6,3095.0,3.52879076]
[1720600117131,3.0,3095.6,3095.0,3.52879076]
[1720600117376,5.446,3095.7,3095.0,3.52879076]
[1720600117547,1.11885508,3095.6,3095.0,3.52879076]
[1720600117735,3.0,3095.6,3095.0,3.52879076]
[1720600117946,1.11887265,3095.5,3095.0,3.2079916]
[1720600118137,3.0,3095.6,3095.0,3.2079916]
[1720600118358,1.11890135,3095.5,3095.0,3.2079916]
[1720600118539,3.0,3095.6,3095.0,3.2079916]
[1720600118869,1.11890238,3095.5,3095.0,3.2079916]
[1720600119075,3.0,3095.6,3095.0,3.2079916]
[1720600119288,1.11889911,3095.5,3095.0,3.2079916]
[1720600119577,3.0,3095.6,3095.0,3.2079916]
[1720600119750,1.11887453,3095.5,3095.0,3.2079916]
[1720600119940,3.0,3095.6,3095.0,3.52879076]